[Event "35th European Club Cup 2019"]
[Site "Ulcinj"]
[Date "2019.11.15"]
[Round "6.15"]
[White "Ris, Robert"]
[Black "Florstedt, Johannes"]
[Result "0-1"]
[ECO "C95"]
[WhiteElo "2454"]
[BlackElo "2352"]
[Annotator "ChessBase"]
[PlyCount "188"]
[EventDate "2019.11.10"]
[EventType "team-tourn"]
[EventCountry "MNE"]
[SourceTitle "playchess.com"]
[Source "ChessBase"]
[SourceQuality "1"]
[WhiteTeam "KGSRL Gent"]
[BlackTeam "Berlin"]
[TimeControl "40/5400+30:1800+30"]

1. e4 {[%emt 0:00:00]} e5 {[%emt 0:00:00]} 2. Nf3 {[%emt 0:00:35]} Nc6 {[%emt 0:00:00]} 3. Bb5 {[%emt 0:01:54]} a6 {[%emt 0:00:09]} 4. Ba4 {[%emt 0:00:32]} Nf6 {[%emt 0:00:08]} 5. O-O {[%emt 0:00:49]} Be7 {[%emt 0:00:59]} 6. Re1 {[%emt 0:03:02]} b5 {[%emt 0:00:11]} 7. Bb3 {[%emt 0:00:05]} d6 {[%emt 0:00:16]} 8. c3 {[%emt 0:00:33]} O-O {[%emt 0:00:12]} 9. h3 {[%emt 0:00:16]} Nb8 {[%emt 0:00:15]} 10. d4 {[%emt 0:00:19]} Nbd7 {[%emt 0:00:07]} 11. Nbd2 {[%emt 0:00:42]} Bb7 {[%emt 0:00:13]} 12. Bc2 {[%emt 0:01:05]} Re8 {[%emt 0:00:25]} 13. a4 {[%emt 0:03:42]} Bf8 {[%emt 0:01:56]} 14. Bd3 {[%emt 0:00:56]} c6 {[%emt 0:01:54]} 15. Qc2 {[%emt 0:02:09]} g6 {[%emt 0:05:14]} 16. b4 {[%emt 0:05:58]} Nb6 {[%emt 0:01:02]} 17. a5 {[%emt 0:03:44]} Nbd7 {[%emt 0:00:50]} 18. Bb2 {[%emt 0:01:15]} Rc8 {[%emt 0:02:02]} 19. c4 {[%emt 0:08:13]} exd4 {[%emt 0:13:01]} 20. Bxd4 {[%emt 0:06:02]} c5 {[%emt 0:02:32]} 21. bxc5 {[%emt 0:00:31]} dxc5 {[%emt 0:17:28]} 22. Bb2 {[%emt 0:01:52]} Bg7 {[%emt 0:13:40]} 23. e5 {[%emt 0:27:19]} Nh5 {[%emt 0:02:37]} 24. Be4 {[%emt 0:04:11]} Bxe4 {[%emt 0:02:51]} 25. Rxe4 {[%emt 0:01:24]} Bh8 {[%emt 0:07:47]} 26. Nf1 {[%emt 0:02:56]} Qc7 {[%emt 0:05:42]} 27. g4 {[%emt 0:03:36]} Ng7 {[%emt 0:00:53]} 28. Ne3 {[%emt 0:00:30]} Ne6 {[%emt 0:00:42]} 29. Nd5 {[%emt 0:00:40]} Qb7 {[%emt 0:00:44]} 30. Qe2 {[%emt 0:08:54]} bxc4 {[%emt 0:01:22]} 31. Rd1 {[%emt 0:00:49]} Nd4 {[%emt 0:06:25]} 32. Bxd4 {[%emt 0:04:14]} cxd4 {[%emt 0:00:31]} 33. Rexd4 {[%emt 0:00:54]} c3 {[%emt 0:02:46]} 34. Qe4 {[%emt 0:01:19]} Nc5 {[%emt 0:01:32]} 35. Qc2 {[%emt 0:00:46]} Qb2 {[%emt 0:03:59]} 36. R4d2 {[%emt 0:02:24]} Na4 {[%emt 0:02:29]} 37. Re2 {[%emt 0:01:14]} Bxe5 {[%emt 0:01:31]} 38. Rde1 {[%emt 0:02:04]} Qxc2 {[%emt 0:00:23]} 39. Rxc2 {[%emt 0:00:02]} Rcd8 {[%emt 0:01:12]} 40. Nb4 {[%emt 0:00:00]} Bd6 {[%emt 0:00:00]} 41. Rxe8+ {[%emt 0:07:04]} Rxe8 {[%emt 0:02:02]} 42. Nd5 {[%emt 0:00:09]} Kg7 {[%emt 0:02:19]} 43. Kf1 {[%emt 0:02:17]} Re4 {[%emt 0:09:19]} 44. Nb6 {[%emt 0:06:28]} Nxb6 {[%emt 0:01:17]} 45. axb6 {[%emt 0:00:02]} Rb4 {[%emt 0:00:34]} 46. Rxc3 {[%emt 0:00:06]} Rxb6 {[%emt 0:00:08]} 47. Rc8 {[%emt 0:00:17]} Rb1+ {[%emt 0:05:53]} 48. Kg2 {[%emt 0:00:25]} a5 {[%emt 0:01:13]} 49. Ra8 {[%emt 0:02:42]} Ra1 {[%emt 0:02:27]} 50. Ra6 {[%emt 0:03:20]} Bc5 {[%emt 0:01:02]} 51. Nd2 {[%emt 0:03:18]} Bb4 {[%emt 0:02:29]} 52. Ne4 {[%emt 0:01:32]} Re1 {[%emt 0:03:31]} 53. Kf3 {[%emt 0:00:51]} h6 {[%emt 0:00:24]} 54. h4 {[%emt 0:00:54]} Rh1 {[%emt 0:00:48]} 55. Kg3 {[%emt 0:01:25]} Rg1+ {[%emt 0:01:59]} 56. Kf4 {[%emt 0:00:32]} Rd1 {[%emt 0:01:17]} 57. g5 {[%emt 0:01:10]} hxg5+ {[%emt 0:00:18]} 58. hxg5 {[%emt 0:00:08]} Rd5 {[%emt 0:00:37]} 59. Ra8 {[%emt 0:01:38]} Be7 {[%emt 0:00:45]} 60. Ra7 {[%emt 0:00:39]} Ba3 {[%emt 0:00:32]} 61. Ra8 {[%emt 0:01:18]} Bc1+ {[%emt 0:00:49]} 62. Kg4 {[%emt 0:00:11]} Rf5 {[%emt 0:00:22]} 63. f3 {[%emt 0:00:48]} Rf4+ {[%emt 0:00:23]} 64. Kg3 {[%emt 0:00:08]} Rf5 {[%emt 0:00:08]} 65. Kg4 {[%emt 0:00:07]} Bb2 {[%emt 0:00:29]} 66. Nd6 {[%emt 0:00:52]} Rc5 {[%emt 0:01:11]} 67. Ra7 {[%emt 0:00:41]} Be5 {[%emt 0:02:46]} 68. Nxf7 {[%emt 0:01:17]} Rc4+ {[%emt 0:00:33]} 69. Kh3 {[%emt 0:00:08]} Rc7 {[%emt 0:00:07]} 70. Rxa5 {[%emt 0:00:40]} Bc3 {[%emt 0:00:42]} 71. Ra4 {[%emt 0:00:34]} Rxf7 {[%emt 0:00:19]} 72. Kg4 {[%emt 0:00:14]} Bd2 {[%emt 0:00:13]} 73. Rd4 {[%emt 0:00:47]} Be3 {[%emt 0:00:20]} 74. Re4 {[%emt 0:00:08]} Bc5 {[%emt 0:00:05]} 75. f4 {[%emt 0:00:35]} Rf5 {[%emt 0:00:18]} 76. Kf3 {[%emt 0:00:37]} Kf7 {[%emt 0:00:09]} 77. Kg4 {[%emt 0:00:23]} Rd5 {[%emt 0:00:09]} 78. Ra4 {[%emt 0:00:36]} Rd1 {[%emt 0:00:20]} 79. Re4 {[%emt 0:01:32]} Rf1 {[%emt 0:00:26]} 80. Re5 {[%emt 0:00:54]} Bd6 {[%emt 0:00:21]} 81. Re4 {[%emt 0:00:06]} Be7 {[%emt 0:01:13]} 82. Re5 {[%emt 0:00:54]} Bd6 {[%emt 0:00:04]} 83. Re4 {[%emt 0:00:07]} Rg1+ {[%emt 0:00:15]} 84. Kf3 {[%emt 0:00:06]} Ra1 {[%emt 0:00:56]} 85. Kg4 {[%emt 0:00:41]} Rb1 {[%emt 0:00:15]} 86. Rd4 {[%emt 0:02:02]} Ke6 {[%emt 0:00:20]} 87. Re4+ {[%emt 0:00:05]} Kd5 {[%emt 0:00:30]} 88. Ra4 {[%emt 0:00:31]} Rg1+ {[%emt 0:00:36]} 89. Kf3 {[%emt 0:00:14]} Rf1+ {[%emt 0:00:08]} 90. Kg4 {[%emt 0:00:11]} Rb1 {[%emt 0:00:11]} 91. Kg3 {[%emt 0:02:47]} Rb4 {[%emt 0:00:12]} 92. Ra5+ {[%emt 0:00:13]} Ke4 {[%emt 0:01:16]} 93. Ra6 {[%emt 0:00:12]} Rd4 {[%emt 0:01:28]} 94. Kg4 {[%emt 0:01:46]} Ke3 {[%emt 0:00:08]} 0-1

[Event "35th European Club Cup 2019"]
[Site "Ulcinj"]
[Date "2019.11.15"]
[Round "6.15"]
[White "Vedrickas, Tautvydas"]
[Black "Muetsch, Annmarie"]
[Result "1/2-1/2"]
[ECO "E81"]
[WhiteElo "2403"]
[BlackElo "2240"]
[Annotator "NA"]
[PlyCount "120"]
[EventDate "2019.11.10"]
[EventType "team-tourn"]
[EventCountry "MNE"]
[SourceTitle "playchess.com"]
[Source "ChessBase"]
[SourceQuality "1"]
[WhiteTeam "MRU-ROSK Consulting"]
[BlackTeam "Viernheim"]
[TimeControl "40/5400+30:1800+30"]

1. d4 {[%emt 0:00:00]} Nf6 {[%emt 0:00:00]} 2. c4 {[%emt 0:00:00]} g6 {[%emt 0:00:00]} 3. Nc3 {[%emt 0:00:00]} Bg7 {[%emt 0:00:00]} 4. e4 {[%emt 0:00:22]} d6 {[%emt 0:00:00]} 5. f3 {[%emt 0:00:21]} O-O {[%emt 0:00:16]} 6. Nge2 {[%emt 0:00:40]} Nc6 {[%emt 0:05:14]} 7. Bg5 {[%emt 0:01:07]} a6 {[%emt 0:01:37]} 8. Qd2 {[%emt 0:00:20]} Na5 {[%emt 0:02:01]} 9. Nc1 {[%emt 0:00:14]} c5 {[%emt 0:05:57]} 10. d5 {[%emt 0:11:11]} Bd7 {[%emt 0:20:24]} 11. Be2 {[%emt 0:01:10]} b5 {[%emt 0:00:06]} 12. cxb5 {[%emt 0:03:17]} axb5 {[%emt 0:00:34]} 13. Nxb5 {[%emt 0:01:33]} Qb6 {[%emt 0:08:01]} 14. a4 c4 {[%emt 0:00:30]} 15. Be3 {[%emt 0:11:44]} Qb7 {[%emt 0:00:12]} 16. O-O {[%emt 0:19:25]} Rfb8 {[%emt 0:02:53]} 17. Bd4 {[%emt 0:02:22]} Bxb5 {[%emt 0:07:32]} 18. axb5 {[%emt 0:00:30]} Qxb5 {[%emt 0:04:24]} 19. Qc3 {[%emt 0:14:45]} Nh5 {[%emt 0:00:09]} 20. Bxg7 {[%emt 0:14:40]} Nxg7 {[%emt 0:23:43]} 21. Rf2 Qb6 {[%emt 0:00:30]} 22. g3 {[%emt 0:01:58]} Ne8 {[%emt 0:01:31]} 23. Bf1 {[%emt 0:02:23]} Nf6 {[%emt 0:01:30]} 24. Kg2 {[%emt 0:00:44]} Nd7 25. h4 h5 {[%emt 0:02:17]} 26. Ra3 {[%emt 0:04:29]} Ne5 27. Rc2 Nb3 {[%emt 0:06:18]} 28. Rxa8 {[%emt 0:01:26]} Rxa8 {[%emt 0:00:09]} 29. Nxb3 {[%emt 0:02:02]} cxb3 {[%emt 0:00:27]} 30. Rc1 {[%emt 0:00:16]} Ra5 {[%emt 0:02:36]} 31. Be2 {[%emt 0:00:23]} Rc5 {[%emt 0:01:58]} 32. Qe3 {[%emt 0:00:55]} Nd7 {[%emt 0:02:23]} 33. Rxc5 {[%emt 0:00:08]} Nxc5 {[%emt 0:00:32]} 34. g4 {[%emt 0:01:43]} hxg4 {[%emt 0:00:23]} 35. fxg4 {[%emt 0:00:22]} Qb4 {[%emt 0:00:23]} 36. Bf3 {[%emt 0:04:22]} Qc4 {[%emt 0:00:14]} 37. Kg3 {[%emt 0:01:07]} Qc2 {[%emt 0:01:44]} 38. Qd4 {[%emt 0:00:09]} Qc1 {[%emt 0:00:13]} 39. h5 {[%emt 0:01:50]} Qg5 {[%emt 0:01:35]} 40. hxg6 {[%emt 0:00:00]} fxg6 {[%emt 0:00:00]} 41. e5 Qxe5+ {[%emt 0:12:30]} 42. Qxe5 {[%emt 0:04:54]} dxe5 {[%emt 0:00:06]} 43. g5 {[%emt 0:03:35]} Kf7 {[%emt 0:00:16]} 44. Bg4 {[%emt 0:02:33]} e6 {[%emt 0:08:12]} 45. dxe6+ {[%emt 0:01:02]} Nxe6 {[%emt 0:00:07]} 46. Be2 {[%emt 0:03:46]} Nxg5 {[%emt 0:05:49]} 47. Bc4+ {[%emt 0:00:13]} Kf6 {[%emt 0:00:05]} 48. Bd5 {[%emt 0:02:56]} Kf5 {[%emt 0:00:52]} 49. Bxb3 {[%emt 0:00:21]} Ne4+ {[%emt 0:00:44]} 50. Kg2 {[%emt 0:00:11]} Kf4 {[%emt 0:03:28]} 51. Bc2 {[%emt 0:01:21]} g5 {[%emt 0:00:06]} 52. b4 {[%emt 0:01:05]} Nc3 {[%emt 0:00:49]} 53. Bd3 {[%emt 0:01:43]} e4 {[%emt 0:01:06]} 54. Bc4 {[%emt 0:00:40]} Ke5 {[%emt 0:02:13]} 55. b5 {[%emt 0:04:54]} Kd6 {[%emt 0:00:06]} 56. Kf2 {[%emt 0:03:00]} Kc5 {[%emt 0:00:15]} 57. Ke3 {[%emt 0:00:42]} g4 {[%emt 0:01:44]} 58. b6 {[%emt 0:03:30]} Kxb6 {[%emt 0:00:07]} 59. Kd4 {[%emt 0:00:06]} g3 {[%emt 0:00:15]} 60. Bf1 {[%emt 0:00:09]} e3 {[%emt 0:01:28] Ke4} 1/2-1/2

[Event "35th European Club Cup 2019"]
[Site "Ulcinj"]
[Date "2019.11.15"]
[Round "6.15"]
[White "Vrbata, Zbynek"]
[Black "Delchev, Aleksander"]
[Result "0-1"]
[ECO "D45"]
[WhiteElo "2353"]
[BlackElo "2561"]
[Annotator "ChessBase"]
[PlyCount "74"]
[EventDate "2019.11.10"]
[EventType "team-tourn"]
[EventCountry "MNE"]
[SourceTitle "playchess.com"]
[Source "ChessBase"]
[SourceQuality "1"]
[WhiteTeam "Unichess"]
[BlackTeam "Asnieres"]
[TimeControl "40/5400+30:1800+30"]

1. d4 {[%emt 0:00:00]} d5 {[%emt 0:00:00]} 2. c4 {[%emt 0:00:00]} e6 {[%emt 0:00:00]} 3. Nc3 {[%emt 0:00:00]} c6 {[%emt 0:00:00]} 4. e3 {[%emt 0:01:15]} Nf6 {[%emt 0:00:12]} 5. Nf3 {[%emt 0:00:37]} Nbd7 {[%emt 0:00:05]} 6. Be2 {[%emt 0:02:19]} Bd6 {[%emt 0:00:40]} 7. O-O {[%emt 0:00:22]} O-O {[%emt 0:00:05]} 8. c5 {[%emt 0:05:26]} Bc7 {[%emt 0:00:13]} 9. b4 {[%emt 0:00:11]} e5 {[%emt 0:00:49]} 10. dxe5 {[%emt 0:02:56]} Nxe5 {[%emt 0:00:04]} 11. Bb2 {[%emt 0:03:46]} Qe7 {[%emt 0:01:03]} 12. Na4 {[%emt 0:16:28]} Nxf3+ {[%emt 0:30:48]} 13. Bxf3 {[%emt 0:00:55]} Ne4 {[%emt 0:01:11]} 14. Qd4 {[%emt 0:10:58]} f5 {[%emt 0:02:00]} 15. g3 {[%emt 0:02:51]} Bd7 {[%emt 0:06:44]} 16. a3 {[%emt 0:02:51]} Rf6 {[%emt 0:06:34]} 17. Rad1 {[%emt 0:03:51]} Qf7 {[%emt 0:02:33]} 18. Nc3 {[%emt 0:19:53]} Re8 {[%emt 0:00:30]} 19. Qd3 {[%emt 0:05:13]} Rh6 {[%emt 0:03:10]} 20. Ne2 {[%emt 0:10:54]} Ng5 {[%emt 0:02:17]} 21. Bg2 {[%emt 0:00:12]} Qh5 {[%emt 0:01:00]} 22. h4 {[%emt 0:00:31]} Nf3+ {[%emt 0:01:14]} 23. Bxf3 {[%emt 0:00:45]} Qxf3 {[%emt 0:00:02]} 24. Nf4 g5 {[%emt 0:04:24]} 25. Qe2 {[%emt 0:01:26]} Qxe2 {[%emt 0:00:28]} 26. Nxe2 {[%emt 0:00:04]} gxh4 {[%emt 0:00:15]} 27. Kg2 {[%emt 0:00:58]} hxg3 {[%emt 0:01:28]} 28. Nxg3 {[%emt 0:00:08]} f4 {[%emt 0:00:47]} 29. exf4 {[%emt 0:00:21]} Bh3+ {[%emt 0:00:16]} 30. Kf3 {[%emt 0:00:02]} Rh4 {[%emt 0:02:48]} 31. Ne2 {[%emt 0:01:29]} h5 {[%emt 0:06:26]} 32. Rfe1 {[%emt 0:02:21]} Rg4 {[%emt 0:02:15]} 33. Be5 {[%emt 0:03:13]} Bxe5 {[%emt 0:02:37]} 34. fxe5 {[%emt 0:00:06]} Rf8+ {[%emt 0:01:02]} 35. Ke3 {[%emt 0:00:12]} Re4+ {[%emt 0:00:05]} 36. Kd3 {[%emt 0:00:26]} Rf3+ {[%emt 0:00:08]} 37. Kd2 {[%emt 0:00:14]} Rxf2 {[%emt 0:00:04]} 0-1

[Event "35th European Club Cup 2019"]
[Site "Ulcinj"]
[Date "2019.11.15"]
[Round "6.16"]
[White "Popov, Ivan"]
[Black "Predojevic, Borki"]
[Result "1-0"]
[ECO "C07"]
[WhiteElo "2625"]
[BlackElo "2621"]
[Annotator "ChessBase"]
[PlyCount "63"]
[EventDate "2019.11.10"]
[EventType "team-tourn"]
[EventCountry "MNE"]
[SourceTitle "playchess.com"]
[Source "ChessBase"]
[SourceQuality "1"]
[WhiteTeam "Moscow Chess Team"]
[BlackTeam "Valerenga"]
[TimeControl "40/5400+30:1800+30"]

1. e4 {[%emt 0:00:00]} e6 {[%emt 0:00:00]} 2. d4 {[%emt 0:00:02]} d5 {[%emt 0:00:00]} 3. Nd2 {[%emt 0:00:32]} c5 {[%emt 0:00:05]} 4. exd5 {[%emt 0:00:41]} Qxd5 {[%emt 0:00:33]} 5. Ngf3 {[%emt 0:00:15]} cxd4 {[%emt 0:00:22]} 6. Bc4 {[%emt 0:00:11]} Qd6 {[%emt 0:01:08]} 7. O-O {[%emt 0:00:30]} Nf6 {[%emt 0:00:09]} 8. Nb3 {[%emt 0:01:22]} Nc6 {[%emt 0:01:00]} 9. Nbxd4 {[%emt 0:02:35]} Nxd4 {[%emt 0:00:35]} 10. Nxd4 {[%emt 0:00:09]} Be7 {[%emt 0:00:35]} 11. c3 {[%emt 0:09:13]} O-O {[%emt 0:00:26]} 12. Re1 {[%emt 0:00:59]} Bd7 {[%emt 0:13:48]} 13. Qf3 {[%emt 0:01:52]} Qc7 {[%emt 0:00:29]} 14. Bd3 {[%emt 0:11:51]} Rad8 {[%emt 0:26:50]} 15. Bg5 {[%emt 0:17:28]} Nd5 {[%emt 0:02:27]} 16. Bxe7 {[%emt 0:16:09]} Nxe7 {[%emt 0:00:16]} 17. Rad1 {[%emt 0:01:14]} Ng6 {[%emt 0:18:46]} 18. g3 {[%emt 0:04:25]} Rfe8 {[%emt 0:03:29]} 19. Bc2 {[%emt 0:02:54]} Qb6 {[%emt 0:09:06]} 20. Re2 {[%emt 0:05:36]} e5 {[%emt 0:07:41]} 21. Bb3 {[%emt 0:07:52]} exd4 {[%emt 0:07:54]} 22. Qxf7+ {[%emt 0:01:24]} Kh8 {[%emt 0:00:04]} 23. Rxe8+ {[%emt 0:00:13]} Rxe8 {[%emt 0:00:15]} 24. Qxd7 {[%emt 0:00:08]} Rd8 {[%emt 0:00:10]} 25. Re1 {[%emt 0:01:15]} Rf8 {[%emt 0:05:37]} 26. Re8 {[%emt 0:01:01]} Qf6 {[%emt 0:00:23]} 27. Rxf8+ {[%emt 0:00:07]} Qxf8 {[%emt 0:00:03]} 28. cxd4 {[%emt 0:00:22]} b6 {[%emt 0:00:46]} 29. Qxa7 {[%emt 0:00:47]} Qd8 {[%emt 0:00:03]} 30. Qf7 {[%emt 0:01:13]} Ne7 {[%emt 0:00:07]} 31. Ba4 {[%emt 0:02:31]} Ng8 {[%emt 0:01:50]} 32. Qe8 {[%emt 0:00:29]} 1-0

[Event "35th European Club Cup 2019"]
[Site "Ulcinj"]
[Date "2019.11.15"]
[Round "6.16"]
[White "Beikert, Guenther"]
[Black "Brazdzionis, Andrius"]
[Result "1-0"]
[ECO "A13"]
[WhiteElo "2380"]
[BlackElo "2355"]
[Annotator "NA"]
[PlyCount "77"]
[EventDate "2019.11.10"]
[EventType "team-tourn"]
[EventCountry "MNE"]
[SourceTitle "playchess.com"]
[Source "ChessBase"]
[SourceQuality "1"]
[WhiteTeam "Viernheim"]
[BlackTeam "MRU-ROSK Consulting"]
[TimeControl "40/5400+30:1800+30"]

1. c4 {[%emt 0:00:00]} e6 {[%emt 0:00:00]} 2. g3 {[%emt 0:00:20]} Nf6 {[%emt 0:00:09]} 3. Bg2 {[%emt 0:00:10]} d5 {[%emt 0:00:12]} 4. Nf3 {[%emt 0:00:13]} dxc4 {[%emt 0:00:29]} 5. Qa4+ {[%emt 0:00:43]} Bd7 {[%emt 0:00:10]} 6. Qxc4 {[%emt 0:00:07]} c5 {[%emt 0:00:05]} 7. Ne5 {[%emt 0:03:00]} Qc8 {[%emt 0:00:08]} 8. Nxd7 {[%emt 0:01:57]} Nbxd7 {[%emt 0:00:55]} 9. O-O {[%emt 0:00:46]} Be7 {[%emt 0:07:30]} 10. d4 O-O {[%emt 0:00:51]} 11. dxc5 {[%emt 0:00:42]} Nxc5 {[%emt 0:00:14]} 12. Nc3 {[%emt 0:02:21]} a6 {[%emt 0:01:07]} 13. e4 {[%emt 0:04:48]} b5 {[%emt 0:02:12]} 14. Qe2 {[%emt 0:00:09]} e5 {[%emt 0:02:10]} 15. f4 {[%emt 0:04:17]} Bd6 {[%emt 0:13:13]} 16. Rd1 {[%emt 0:06:30]} Qc7 {[%emt 0:03:33]} 17. f5 {[%emt 0:00:15]} b4 {[%emt 0:00:08]} 18. Nd5 {[%emt 0:02:46]} Nxd5 {[%emt 0:09:09]} 19. exd5 {[%emt 0:00:58]} Qe7 {[%emt 0:00:22]} 20. Be3 {[%emt 0:00:09]} Rac8 {[%emt 0:02:36]} 21. Rac1 {[%emt 0:02:57]} Rc7 {[%emt 0:11:35]} 22. Rc4 {[%emt 0:03:48]} b3 {[%emt 0:00:53]} 23. axb3 {[%emt 0:03:55]} Nxb3 {[%emt 0:02:11]} 24. Rh4 {[%emt 0:00:28]} g6 {[%emt 0:07:38]} 25. Kh1 {[%emt 0:06:49]} Rb8 {[%emt 0:04:07]} 26. Qxa6 Nd4 27. Bxd4 {[%emt 0:12:48]} exd4 {[%emt 0:00:39]} 28. Rhxd4 {[%emt 0:01:04]} Rxb2 {[%emt 0:01:33]} 29. Re4 {[%emt 0:00:50]} Qd8 {[%emt 0:08:00]} 30. Re2 {[%emt 0:08:09]} Rcc2 {[%emt 0:00:03]} 31. Rxc2 {[%emt 0:00:30]} Rxc2 {[%emt 0:00:30]} 32. Qd3 {[%emt 0:00:30]} Qc7 {[%emt 0:02:05]} 33. Qe3 {[%emt 0:01:58]} Kg7 {[%emt 0:04:28]} 34. f6+ {[%emt 0:05:58]} Kxf6 {[%emt 0:01:40]} 35. Qh6 Qc5 {[%emt 0:02:26]} 36. Qxh7 {[%emt 0:01:57]} Rc1 {[%emt 0:00:47]} 37. Qh8+ {[%emt 0:03:03]} Ke7 {[%emt 0:01:46]} 38. Qh4+ {[%emt 0:00:21]} Kf8 {[%emt 0:00:15]} 39. Qh6+ {[%emt 0:00:04]} 1-0

[Event "35th European Club Cup 2019"]
[Site "Ulcinj"]
[Date "2019.11.15"]
[Round "6.16"]
[White "Rudolf, Henrik"]
[Black "Lemmers, Oscar"]
[Result "1/2-1/2"]
[ECO "B43"]
[WhiteElo "2319"]
[BlackElo "2346"]
[Annotator "NA"]
[PlyCount "80"]
[EventDate "2019.11.10"]
[EventType "team-tourn"]
[EventCountry "MNE"]
[SourceTitle "playchess.com"]
[Source "ChessBase"]
[SourceQuality "1"]
[WhiteTeam "Berlin"]
[BlackTeam "KGSRL Gent"]
[TimeControl "40/5400+30:1800+30"]

1. e4 {[%emt 0:00:00]} c5 {[%emt 0:00:00]} 2. Nf3 {[%emt 0:00:00]} e6 {[%emt 0:00:00]} 3. d4 {[%emt 0:00:00]} cxd4 {[%emt 0:00:00]} 4. Nxd4 {[%emt 0:00:00]} a6 {[%emt 0:00:03]} 5. Nc3 {[%emt 0:00:10]} Qc7 {[%emt 0:00:19]} 6. Be2 {[%emt 0:00:35]} b5 {[%emt 0:00:42]} 7. O-O {[%emt 0:00:41]} Bb7 {[%emt 0:00:21]} 8. Re1 {[%emt 0:00:24]} Nc6 {[%emt 0:00:32]} 9. Nxc6 {[%emt 0:01:26]} dxc6 {[%emt 0:00:28]} 10. e5 {[%emt 0:01:00]} Rd8 {[%emt 0:01:12]} 11. Bd3 {[%emt 0:00:16]} c5 {[%emt 0:01:16]} 12. Qe2 {[%emt 0:01:37]} Ne7 {[%emt 0:06:32]} 13. a4 {[%emt 0:04:14]} b4 {[%emt 0:01:48]} 14. Ne4 {[%emt 0:01:53]} Nf5 {[%emt 0:05:28]} 15. c3 {[%emt 0:23:09]} bxc3 {[%emt 0:22:58]} 16. bxc3 {[%emt 0:00:50]} Qc6 {[%emt 0:00:53]} 17. Bg5 {[%emt 0:26:53]} Rd7 {[%emt 0:03:14]} 18. Rab1 {[%emt 0:05:50]} h6 {[%emt 0:01:10]} 19. Bf6 {[%emt 0:06:52]} Be7 {[%emt 0:12:58]} 20. Bxe7 {[%emt 0:09:31]} Kxe7 {[%emt 0:00:50]} 21. f3 {[%emt 0:02:08]} Rhd8 {[%emt 0:02:25]} 22. Bc4 {[%emt 0:01:44]} Qc7 {[%emt 0:03:31]} 23. Qf2 {[%emt 0:01:49]} Qxe5 {[%emt 0:01:22]} 24. Nxc5 {[%emt 0:00:58]} Qxc3 {[%emt 0:01:06]} 25. Nxd7 {[%emt 0:04:46]} Rxd7 {[%emt 0:00:40]} 26. Qc5+ {[%emt 0:02:09]} Kf6 {[%emt 0:00:29]} 27. Rec1 {[%emt 0:01:21]} Qd2 {[%emt 0:00:28]} 28. Rd1 {[%emt 0:02:15]} Qxd1+ {[%emt 0:00:07]} 29. Rxd1 {[%emt 0:00:02]} Rxd1+ {[%emt 0:00:07]} 30. Kf2 {[%emt 0:00:03]} Rc1 {[%emt 0:00:10]} 31. Qb4 {[%emt 0:00:23]} Rc2+ {[%emt 0:00:26]} 32. Be2 {[%emt 0:01:33]} Bd5 {[%emt 0:00:18]} 33. Ke1 {[%emt 0:00:18]} Rc6 {[%emt 0:03:11]} 34. Bd3 {[%emt 0:01:05]} e5 {[%emt 0:02:08]} 35. Bxf5 {[%emt 0:00:59]} Kxf5 {[%emt 0:00:01]} 36. Qf8 {[%emt 0:00:26]} Kg6 {[%emt 0:04:25]} 37. Qd8 {[%emt 0:00:24]} Be6 {[%emt 0:01:03]} 38. Qd3+ {[%emt 0:00:13]} Kf6 {[%emt 0:00:34]} 39. Qd8+ {[%emt 0:00:15]} Kg6 {[%emt 0:00:11]} 40. Qd3+ {[%emt 0:00:00]} Kf6 {[%emt 0:00:00]} 1/2-1/2

[Event "35th European Club Cup 2019"]
[Site "Ulcinj"]
[Date "2019.11.15"]
[Round "6.16"]
[White "Olivier, Pierre"]
[Black "Bartos, Jan"]
[Result "1/2-1/2"]
[ECO "A05"]
[WhiteElo "2200"]
[BlackElo "2136"]
[Annotator "NA"]
[PlyCount "66"]
[EventDate "2019.11.10"]
[EventType "team-tourn"]
[EventCountry "MNE"]
[SourceTitle "playchess.com"]
[Source "ChessBase"]
[SourceQuality "1"]
[WhiteTeam "Asnieres"]
[BlackTeam "Unichess"]
[TimeControl "40/5400+30:1800+30"]

1. Nf3 {[%emt 0:00:00]} Nf6 {[%emt 0:00:00]} 2. c4 {[%emt 0:00:00]} e6 {[%emt 0:00:00]} 3. e3 {[%emt 0:05:27]} b6 {[%emt 0:00:22]} 4. b3 {[%emt 0:04:30]} Bb7 {[%emt 0:00:24]} 5. Bb2 {[%emt 0:00:08]} Be7 {[%emt 0:00:09]} 6. g3 {[%emt 0:03:58]} O-O {[%emt 0:00:23]} 7. Bg2 {[%emt 0:00:06]} d5 {[%emt 0:00:23]} 8. O-O {[%emt 0:00:17]} c5 {[%emt 0:00:16]} 9. Qe2 {[%emt 0:01:04]} Qc8 {[%emt 0:00:31]} 10. Rd1 {[%emt 0:13:36]} Rd8 {[%emt 0:03:45]} 11. cxd5 {[%emt 0:06:43]} Nxd5 {[%emt 0:00:10]} 12. Nc3 {[%emt 0:02:40]} Nxc3 {[%emt 0:07:54]} 13. dxc3 {[%emt 0:00:47]} Nc6 {[%emt 0:06:38]} 14. Rxd8+ {[%emt 0:03:06]} Qxd8 {[%emt 0:00:07]} 15. Rd1 {[%emt 0:00:10]} Qc7 {[%emt 0:00:13]} 16. c4 Rd8 {[%emt 0:00:51]} 17. h4 {[%emt 0:05:32]} Rxd1+ {[%emt 0:15:05]} 18. Qxd1 {[%emt 0:00:08]} Qd8 {[%emt 0:00:20]} 19. Qxd8+ {[%emt 0:15:15]} Nxd8 {[%emt 0:00:30]} 20. Ne1 {[%emt 0:04:30]} Bxg2 {[%emt 0:06:20]} 21. Kxg2 {[%emt 0:00:53]} Nc6 {[%emt 0:00:09]} 22. Nd3 {[%emt 0:00:24]} Bd6 {[%emt 0:01:29]} 23. Bc3 {[%emt 0:07:50]} f5 {[%emt 0:05:01]} 24. Kf3 {[%emt 0:13:03]} Kf7 {[%emt 0:05:34]} 25. e4 {[%emt 0:04:31]} g6 {[%emt 0:00:24]} 26. e5 {[%emt 0:01:34]} Bf8 {[%emt 0:01:53]} 27. Ke3 {[%emt 0:01:13]} Bh6+ {[%emt 0:00:40]} 28. f4 {[%emt 0:00:16]} Bf8 {[%emt 0:00:13]} 29. Kf3 {[%emt 0:00:36]} h5 {[%emt 0:05:07]} 30. Ke3 {[%emt 0:01:52]} Ke8 {[%emt 0:01:37]} 31. Ne1 {[%emt 0:01:35]} Kd7 {[%emt 0:00:32]} 32. Nf3 {[%emt 0:00:12]} Be7 33. Ne1 Kc7 {[%emt 0:02:07]} 1/2-1/2